fUSD/lending_fUSD_20250620
["ID","MTS","AMOUNT","RATE_DAILY","PERIOD"]
[366658212,1750386641560,-151.0,0.00026709,2]
[366658213,1750386641570,-225.0,0.00026709,2]
[366658214,1750386641581,-152.8953565,0.00026709,2]
[366658215,1750386641591,-500.0,0.00026709,2]
[366658216,1750386641602,-368.96893295,0.00026709,2]
[366658217,1750386641612,-500.0,0.00026709,2]
[366658218,1750386641623,-500.0,0.00026709,2]
[366658219,1750386641634,-151.94193683,0.00026709,2]
[366658220,1750386641645,-500.0,0.00026709,2]
[366658221,1750386641656,-500.0,0.00026709,2]
[366658222,1750386641666,-500.0,0.00026709,2]
[366658223,1750386641677,-500.0,0.00026709,2]
[366658224,1750386641687,-523.07903196,0.00026709,2]
[366658225,1750386641698,-500.0,0.00026709,2]
[366658226,1750386641708,-500.0,0.00026709,2]
[366658227,1750386641719,-508.12090178,0.00026709,2]
[366658228,1750386641730,-500.0,0.00026709,2]
[366658229,1750386641741,-500.0,0.00026709,2]
[366658230,1750386641751,-500.0,0.00026709,2]
[366658231,1750386641761,-500.0,0.00026709,2]
[366658232,1750386641772,-500.0,0.00026709,2]
[366658233,1750386641786,-207.4,0.00026709,2]
[366658234,1750386641796,-500.0,0.00026709,2]
[366658235,1750386641806,-500.0,0.00026709,2]
[366658236,1750386641817,-500.0,0.00026709,2]
[366658237,1750386641827,-500.0,0.00026709,2]
[366658238,1750386641838,-500.0,0.00026709,2]
[366658239,1750386641848,-500.0,0.00026709,2]
[366658240,1750386641858,-668.65185757,0.00026709,2]
[366658241,1750386641869,-500.0,0.00026709,2]
[366658242,1750386641879,-291.33800912,0.00026709,2]
[366658243,1750386641889,-1680.0,0.00026712,2]
[366658244,1750386641899,-767.92134754,0.00026723,2]
[366658245,1750386641909,-300.0,0.00026737,2]
[366658246,1750386641920,-150.0,0.00026747,4]
[366658247,1750386641930,-150.0,0.00026756,4]
[366658248,1750386641941,-2030.296672,0.00026764,2]
[366658249,1750386641951,-150.0,0.0002677,4]
[366658250,1750386641967,-420.0,0.00026799,2]
[366658251,1750386641977,-2105.41764886,0.00026819,2]
[366658252,1750386641987,-150.0,0.00026829,4]
[366658253,1750386641998,-150.0,0.00026833,4]
[366658254,1750386642008,-167.62,0.00026849,2]
[366658255,1750386642018,-150.0,0.00026859,4]
[366658256,1750386642029,-2183.31810187,0.00026874,2]
[366658257,1750386642039,-150.0,0.00026901,4]
[366658258,1750386642050,-2264.10087164,0.00026929,2]
[366658259,1750386642061,-150.0,0.0002693,4]
[366658260,1750386642072,-150.0,0.00026948,4]
[366658261,1750386642082,-297.80565,0.0002695,8]
[366658262,1750386642093,-2357.36737073,0.00026969,16]
[366658263,1750386642103,-150.0,0.00026973,4]
[366658264,1750386642114,-2347.87260389,0.00026984,2]
[366658265,1750386642124,-150.0,0.00026995,4]
[366658266,1750386642135,-13743.99,0.00027,8]
[366658267,1750386642145,-167.0,0.00027,7]
[366658268,1750386642156,-159.0,0.00027,7]
[366658269,1750386642167,-1000.0,0.00027,2]
[366658270,1750386642178,-1000.0,0.00027,2]
[366658271,1750386642188,-1000.0,0.00027,2]
[366658272,1750386642199,-767.92134754,0.00027005,2]
[366658273,1750386642209,-150.0,0.00027036,4]
[366658274,1750386642221,-2434.74389024,0.00027039,2]
[366658275,1750386642231,-150.0,0.00027044,2]
[366658276,1750386642241,-150.0,0.00027046,4]
[366658277,1750386642252,-150.0,0.00027065,2]
[366658278,1750386642262,-255891.65756442,0.00027071,5]
[366658279,1750386642277,-24124.96665245,0.00027071,5]
[366658280,1750386642291,-1510683.41773603,0.00027071,5]
[366658281,1750386642301,-3602.30067123,0.00027079,2]
[366658282,1750386642312,-150.0,0.00027087,4]
[366658283,1750386642323,-150.0,0.00027087,4]
[366658284,1750386642334,-2524.82941417,0.00027094,2]
[366658285,1750386642344,-3602.30067119,0.00027109,2]
[366658286,1750386642355,-150.0,0.00027113,4]
[366658287,1750386642366,-150.0,0.00027118,4]
[366658288,1750386642377,-150.0,0.00027125,4]
[366658289,1750386642387,-250.0,0.00027126,2]
[366658290,1750386642398,-3602.30067119,0.00027139,2]
[366658291,1750386642408,-2618.2481025,0.00027149,2]
[366658292,1750386642419,-490.0,0.00027156,2]
[366658293,1750386642429,-507.65841443,0.00027156,2]
[366658294,1750386642440,-490.0,0.00027156,2]
[366658295,1750386642450,-150.0,0.00027156,4]
[366658296,1750386642460,-196.77299689,0.00027161,2]
[366658297,1750386642470,-180.38,0.00027161,2]
[366658298,1750386642479,-180.38,0.00027161,2]
[366658299,1750386642495,-180.38,0.00027161,2]
[366658300,1750386642505,-180.38,0.00027161,2]
[366658301,1750386642515,-3602.30067119,0.00027169,2]
[366658302,1750386642526,-300.0,0.0002717,10]
[366658303,1750386642536,-658.28887,0.0002717,2]
[366658304,1750386642547,-23068.95615232,0.0002717,4]
[366658305,1750386642558,-1332328.93045641,0.0002717,4]
[366658306,1750386642707,-381.77121231,0.0002717,4]
[366658307,1750386642720,-34063.17157059,0.0002717,4]
[366658308,1750386642756,-940.21901349,0.0002717,4]
[366658309,1750386642768,-646.08261484,0.0002717,4]
[366658310,1750386642807,-1293.16940294,0.0002717,4]
[366658311,1750386642819,-1551.41745399,0.0002717,4]
[366658319,1750386643946,-203.0,0.00023896,2]
[366658320,1750386643956,-490.0,0.00027156,2]
[366658321,1750386643966,-61.43390396,0.00027156,2]
[366658322,1750386643990,-428.56609604,0.00027156,2]
[366658323,1750386643999,-10849.38510358,0.0002717,4]
[366658324,1750386644031,-10311.0,0.0002717,4]
[366658325,1750386644138,-24343.1092651,0.0002717,4]
[366658326,1750386644158,-1548.8054428,0.0002717,4]
[366658327,1750386644170,-67372.49001841,0.0002717,4]
[366658328,1750386644181,-4151.0207036,0.00027179,2]
[366658329,1750386644191,-22535.91941142,0.0002718,2]
[366658330,1750386644201,-150.0,0.0002719,4]
[366658331,1750386644210,-150.0,0.00027198,2]
[366658332,1750386644219,-3602.30067119,0.00027199,2]
[366658333,1750386644229,-1013.0,0.000272,2]
[366658334,1750386644239,-1993.0,0.000272,2]
[366658335,1750386644249,-868.55693993,0.000272,2]
[366658336,1750386644259,-2176.19729283,0.00027204,2]
[366658337,1750386644269,-150.0,0.00027214,4]
[366658338,1750386644279,-150.0,0.00027228,2]
[366658339,1750386644288,-3602.30067119,0.00027229,2]
[366658340,1750386644298,-200.0,0.00027229,2]
[366658341,1750386644308,-5000.0,0.0002725,6]
[366658342,1750386644318,-150.0,0.00027258,2]
[366658343,1750386644328,-3602.30067119,0.00027259,2]
[366658344,1750386644337,-150.0,0.00027263,4]
[366658345,1750386644346,-3602.30067119,0.00027289,2]
[366658346,1750386644356,-150.0,0.00027296,4]
[366658347,1750386644366,-1000.0,0.000273,2]
[366658348,1750386644376,-150.0,0.00027302,4]
[366658349,1750386644386,-767.92134755,0.00027305,2]
[366658350,1750386644397,-2357.36737073,0.00027314,16]
[366658351,1750386644408,-150.0,0.00027318,4]
[366658352,1750386644418,-265.59720262,0.00027318,2]
[366658353,1750386644429,-559.93348692,0.00027319,12]
[366658354,1750386644439,-169.5099286,0.00027319,2]
[366658355,1750386644449,-3602.30067119,0.00027319,2]
[366658356,1750386644459,-195.83035598,0.00027329,2]
[366658357,1750386644469,-150.0,0.00027335,4]
[366658358,1750386644479,-154.03888196,0.0002734,2]
[366658359,1750386644489,-3602.30067119,0.00027349,2]
[366658360,1750386644498,-632.22077549,0.0002735,2]
[366658361,1750386644508,-268.34559592,0.00027353,2]
[366658362,1750386644518,-268.34559592,0.00027361,2]
[366658363,1750386644527,-268.34559592,0.0002737,2]
[366658364,1750386644537,-268.34559592,0.00027378,2]
[366658365,1750386644547,-690.33371121,0.0002738,2]
[366658366,1750386644557,-268.34559592,0.00027387,2]
[366658367,1750386644567,-150.0,0.00027391,4]
[366658368,1750386644577,-268.34559592,0.00027395,2]
[366658369,1750386644587,-490.0,0.00027397,4]
[366658370,1750386644597,-490.0,0.00027397,4]
[366658371,1750386644607,-299.93836655,0.00027397,2]
[366658372,1750386644617,-161.24,0.00027397,2]
[366658373,1750386644627,-1000.0,0.000274,7]
[366658374,1750386644637,-1000.0,0.000274,7]
[366658375,1750386644646,-1000.0,0.000274,7]
[366658376,1750386644656,-1000.0,0.000274,7]
[366658377,1750386644667,-1000.0,0.000274,7]
[366658378,1750386644677,-1000.0,0.000274,7]
[366658379,1750386644687,-360.0,0.000274,7]
[366658380,1750386644696,-2000.0,0.000274,2]
[366658381,1750386644706,-2000.0,0.000274,2]
[366658382,1750386644715,-6116.53806795,0.000274,3]
[366658383,1750386644726,-150.0,0.00027407,7]
[366658384,1750386644736,-300.0,0.00027408,10]
[366658385,1750386644747,-322464.66381257,0.00027409,2]
[366658386,1750386644760,-665.159998,0.00027409,2]
[366658387,1750386644773,-892.0,0.00027409,2]
[366658393,1750386647901,-310.19259386,0.00027156,2]
[366658394,1750386647911,-13420.29713643,0.00027409,2]
[366658395,1750386647921,-10616.76138317,0.00027409,2]
[366658396,1750386647937,-3701.22088828,0.00027409,2]
[366658397,1750386647953,-182905.79493155,0.00027409,2]
[366658398,1750386647963,-490.0,0.00027418,4]
[366658399,1750386647974,-490.0,0.00027418,4]
[366658400,1750386647984,-490.0,0.00027418,4]
[366658401,1750386647994,-683.27,0.00027418,4]
[366658402,1750386648004,-490.0,0.00027418,4]
[366658403,1750386648015,-490.0,0.00027418,4]
[366658404,1750386648025,-490.0,0.00027418,4]
[366658405,1750386648034,-1815.68,0.00027418,4]
[366658406,1750386648044,-490.0,0.00027418,4]
[366658407,1750386648054,-490.0,0.00027418,4]
[366658408,1750386648064,-490.0,0.00027418,4]
[366658409,1750386648074,-490.0,0.00027418,4]
[366658410,1750386648084,-790.34,0.00027418,4]
[366658411,1750386648095,-667.04,0.00027418,4]
[366658412,1750386648106,-606.48,0.00027418,4]
[366658413,1750386648116,-490.0,0.00027418,4]
[366658414,1750386648127,-490.0,0.00027418,4]
[366658415,1750386648137,-490.0,0.00027418,4]
[366658416,1750386648148,-490.0,0.00027418,4]
[366658417,1750386648158,-771.71,0.00027418,4]
[366658419,1750386648169,-490.0,0.00027418,4]
[366658421,1750386648180,-531.55,0.00027418,4]
[366658423,1750386648190,-490.0,0.00027418,4]
[366658425,1750386648200,-490.0,0.00027418,4]
[366658427,1750386648210,-777.64,0.00027418,4]
[366658429,1750386648221,-490.0,0.00027418,4]
[366658431,1750386648232,-490.0,0.00027418,4]
[366658433,1750386648242,-490.0,0.00027418,4]
[366658435,1750386648252,-490.0,0.00027418,4]
[366658437,1750386648263,-490.0,0.00027418,4]
[366658439,1750386648273,-2697.32,0.00027418,4]
[366658440,1750386648283,-841.08,0.00027418,4]
[366658442,1750386648293,-490.0,0.00027418,4]
[366658444,1750386648303,-490.0,0.00027418,4]
[366658446,1750386648313,-490.0,0.00027418,4]
[366658449,1750386648324,-490.0,0.00027418,4]
[366658451,1750386648335,-490.0,0.00027418,4]
[366658452,1750386648345,-1577.86,0.00027418,4]
[366658454,1750386648356,-490.0,0.00027418,4]
[366658457,1750386648366,-3581.99,0.00027418,4]
[366658459,1750386648377,-490.0,0.00027418,4]
[366658461,1750386648387,-451.01452077,0.00027418,4]
[366658463,1750386648400,-80.74547923,0.00027418,4]
[366658465,1750386648410,-490.0,0.00027418,4]
[366658467,1750386648420,-774.54,0.00027418,4]
[366658469,1750386648430,-490.0,0.00027418,4]
[366658471,1750386648439,-490.0,0.00027418,4]
[366658473,1750386648448,-490.0,0.00027418,4]
[366658475,1750386648458,-490.0,0.00027418,2]
[366658477,1750386648468,-637.67,0.00027418,4]
[366658479,1750386648477,-490.0,0.00027418,4]
[366658480,1750386648487,-748.03,0.00027418,4]
[366658482,1750386648496,-1818.504738,0.00027418,4]
[366658484,1750386648506,-159.070125,0.00027418,4]
[366658487,1750386648515,-514.6,0.00027418,4]
[366658489,1750386648526,-490.0,0.00027418,4]
[366658491,1750386648536,-828.0,0.00027418,4]
[366658493,1750386648545,-150.235678,0.00027418,4]
[366658494,1750386648555,-490.0,0.00027418,4]
[366658496,1750386648565,-490.0,0.00027418,2]
[366658499,1750386648574,-224.22368,0.00027418,4]
[366658501,1750386648585,-1126.84,0.00027418,4]
[366658503,1750386648594,-491.04227578,0.00027418,4]
[366658505,1750386648604,-490.0,0.00027418,2]
[366658507,1750386648613,-1016.08,0.00027418,4]
[366658508,1750386648623,-490.0,0.00027418,4]
[366658511,1750386648633,-500.0,0.00027418,4]
[366658513,1750386648642,-500.0,0.00027418,4]
[366658515,1750386648652,-500.0,0.00027418,4]
[366658517,1750386648661,-577.00170323,0.00027418,4]
[366658519,1750386648671,-490.0,0.00027418,4]
[366658521,1750386648681,-490.0,0.00027419,4]
[366658523,1750386648691,-490.0,0.00027419,4]
[366658525,1750386648700,-490.0,0.00027419,4]
[366658527,1750386648710,-490.0,0.00027419,4]
[366658529,1750386648721,-490.0,0.00027419,4]
[366658530,1750386648730,-490.0,0.00027419,4]
[366658532,1750386648740,-490.0,0.00027419,4]
[366658534,1750386648749,-490.0,0.00027419,4]
[366658536,1750386648758,-490.0,0.00027419,4]
[366658538,1750386648768,-490.0,0.00027419,4]
[366658541,1750386648778,-490.0,0.00027419,4]
[366658542,1750386648790,-490.0,0.00027419,4]
[366658544,1750386648800,-151.0,0.00027419,7]
[366658547,1750386648810,-151.0,0.00027419,7]
[366658548,1750386648819,-3140.835757,0.00027419,7]
[366658550,1750386648829,-3140.835757,0.00027419,7]
[366658552,1750386648838,-3140.835757,0.00027419,7]
[366658555,1750386648848,-3140.835757,0.00027419,7]
[366658556,1750386648858,-350.0,0.00027422,2]
[366658558,1750386648867,-2000.0,0.00027428,2]
[366658560,1750386648877,-2000.0,0.00027428,2]
[366658562,1750386648887,-2000.0,0.00027428,2]
[366658564,1750386648896,-150.0,0.00027428,2]
[366658566,1750386648906,-304.86008141,0.00027428,10]
[366658568,1750386648916,-300.0,0.00027428,10]
[366658569,1750386648926,-490.0,0.00027429,4]
[366658570,1750386648936,-389.18808,0.00027429,4]
[366658571,1750386648946,-490.0,0.00027429,4]
[366658572,1750386648956,-490.0,0.00027429,4]
[366658573,1750386648966,-490.0,0.00027429,4]
[366658574,1750386648977,-500.0,0.00027429,4]
[366658575,1750386648987,-500.0,0.00027429,4]
[366658576,1750386648998,-490.0,0.00027429,4]
[366658577,1750386649008,-490.0,0.00027429,4]
[366658578,1750386649018,-464.38534488,0.00027429,4]
[366658579,1750386649029,-490.0,0.00027429,4]
[366658580,1750386649039,-490.0,0.00027429,4]
[366658581,1750386649049,-282.85811024,0.00027429,4]
[366658582,1750386649142,-207.14188976,0.00027429,4]
[366658583,1750386649153,-321.85236327,0.00027429,4]
[366658584,1750386649167,-215.36763673,0.00027429,4]
[366658586,1750386649177,-490.0,0.00027429,4]
[366658587,1750386649187,-490.0,0.00027429,4]
[366658589,1750386649198,-490.0,0.00027429,4]
[366658590,1750386649208,-1323.48,0.00027429,4]
[366658591,1750386649219,-84.57983397,0.00027429,4]
[366658603,1750386972096,201.0,0.00022896,2]
[366658604,1750387203638,5007.59468674,0.00017435,2]
[366658605,1750387331917,201.0,0.00022927,2]
[366658813,1750387695319,201.0,0.00022986,2]
[366658822,1750387832412,-201.0,0.00024075,3]
[366658823,1750387832433,-250.0,0.00024395,2]
[366658824,1750387832452,-300.0,0.00024903,2]
[366658825,1750387832472,-1200.0,0.00024903,2]
[366658826,1750387832491,-300.0,0.00024903,2]
[366658827,1750387832508,-150.0,0.00024904,4]
[366658828,1750387832526,-150.0,0.00024904,4]
[366658829,1750387832544,-23.51127999,0.00024904,4]
[366658830,1750387832643,-126.48872001,0.00024904,4]
[366658832,1750387832661,-150.0,0.00024904,4]
[366658834,1750387832679,-150.0,0.00024904,4]
[366658837,1750387832696,-150.0,0.00024904,4]
[366658840,1750387832714,-150.29866048,0.00024904,4]
[366658843,1750387832731,-150.0,0.00024904,4]
[366658846,1750387832749,-150.80571967,0.00024904,4]
[366658848,1750387832766,-150.0,0.00024904,4]
[366658851,1750387832784,-150.27728473,0.00024904,4]
[366658854,1750387832801,-150.44489565,0.00024904,4]
[366658856,1750387832813,-150.0,0.00025089,4]
[366658858,1750387832823,-150.0,0.00025117,4]
[366658860,1750387832832,-279.675244,0.00025146,2]
[366658862,1750387832842,-201.0,0.00025163,5]
[366658880,1750387833259,-150.0,0.00025273,4]
[366658881,1750387833320,-150.0,0.00025299,4]
[366658882,1750387833345,-150.0,0.0002533,4]
[366658883,1750387833356,-150.0,0.00025365,4]
[366658884,1750387833366,-150.0,0.00025458,4]
[366658885,1750387833377,-150.0,0.00025543,4]
[366658886,1750387833388,-150.0,0.00025596,4]
[366658887,1750387833399,-200.0,0.00025641,7]
[366658888,1750387833408,-150.0,0.00025642,4]
[366658889,1750387833419,-150.0,0.00025695,4]
[366658890,1750387833429,-150.0,0.00025756,4]
[366658892,1750387833440,-150.0,0.00025826,4]
[366658893,1750387833450,-150.0,0.00025826,4]
[366658894,1750387833460,-2204.61448502,0.000259,14]
[366658895,1750387833472,-150.0,0.00025968,4]
[366658896,1750387833482,-150.0,0.00026011,4]
[366658897,1750387833492,-256.8,0.00026034,2]
[366658898,1750387833503,-200.0,0.00026058,2]
[366658899,1750387833513,-150.0,0.0002609,4]
[366658900,1750387833523,-812.78797202,0.00026095,2]
[366658913,1750387838548,-23087.21202798,0.00026095,2]
[366658914,1750387838558,-460.67,0.00026119,2]
[366658915,1750387838568,-975.65,0.00026127,2]
[366658916,1750387838577,-611.03535713,0.00026154,2]
[366658917,1750387838586,-168.0,0.00026164,2]
[366658918,1750387838596,-150.0,0.00026181,4]
[366658919,1750387838605,-727.19,0.00026185,2]
[366658920,1750387838615,-150.0,0.00026195,4]
[366658921,1750387838624,-666.0,0.00026202,2]
[366658922,1750387838634,-2204.61448502,0.0002621,14]
[366658923,1750387838644,-500.0,0.00026249,2]
[366658924,1750387838653,-201.0,0.00026252,7]
[366658925,1750387838663,-183.92,0.00026285,2]
[366658926,1750387838673,-150.0,0.00026288,4]
[366658927,1750387838682,-150.0,0.00026288,4]
[366658928,1750387838691,-150.0,0.00026288,4]
[366658929,1750387838700,-942.49571766,0.00026309,2]
[366658930,1750387838712,-57.50428234,0.00026309,2]
[366658931,1750387838721,-377.01,0.00026326,120]
[366658932,1750387838730,-439.98,0.0002637,2]
[366658933,1750387838740,-150.0,0.0002638,4]
[366658934,1750387838750,-250.0,0.00026385,2]
[366658935,1750387838760,-150.0,0.00026394,4]
[366658937,1750387838769,-150.0,0.00026485,4]
[366658939,1750387838778,-945.40571766,0.00026521,15]
[366658943,1750387838790,-435.62393828,0.00026521,15]
[366658946,1750387838801,-823.58482908,0.00026521,15]
[366658948,1750387838811,-150.0,0.00026564,4]
[366658950,1750387838820,-150.0,0.00026607,4]
[366658952,1750387838829,-1957.856,0.00026709,2]
[366658954,1750387838838,-207.4,0.00026709,2]
[366658956,1750387838848,-150.0,0.00026749,4]
[366658957,1750387838858,-150.0,0.00026749,4]
[366658958,1750387838867,-2159.83361094,0.00026764,2]
[366658960,1750387838876,-150.0,0.0002682,4]
[366658961,1750387838886,-2204.61448502,0.00026831,15]
[366658962,1750387838895,-150.0,0.00026881,4]
[366658963,1750387838904,-167.37,0.00026883,2]
[366658964,1750387838913,-168.0,0.00026894,2]
[366658965,1750387838922,-1000.0,0.000269,2]
[366658966,1750387838932,-1000.0,0.000269,2]
[366658967,1750387838941,-150.0,0.00026933,4]
[366658968,1750387838950,-260.579943,0.00026936,8]
[366658969,1750387838960,-150.0,0.00026979,4]
[366658970,1750387838969,-420.0,0.00026981,2]
[366658971,1750387838978,-151.0,0.00026984,2]
[366658972,1750387838988,-2775.05,0.00027,2]
[366658973,1750387838997,-168.0,0.00027,7]
[366658974,1750387839006,-150.0,0.00027033,4]
[366658975,1750387839016,-168.0,0.00027063,2]
[366658976,1750387839025,-168.0,0.00027082,7]
[366658977,1750387839034,-725.8525011,0.000271,5]
[366658978,1750387839043,-340.0,0.00027103,2]
[366658979,1750387839053,-150.0,0.00027118,4]
[366658980,1750387839062,-2204.61448502,0.00027141,16]
[366658981,1750387839074,-608.63684678,0.0002716,2]
[366658982,1750387839085,-1406.32,0.00027206,15]
[366658983,1750387839096,-150.0,0.0002721,4]
[366658984,1750387839105,-200.0,0.00027229,2]
[366658985,1750387839115,-150.0,0.0002724,2]
[366658986,1750387839124,-150.0,0.00027241,2]
[366658987,1750387839134,-150.0,0.00027246,4]
[366658988,1750387839143,-150.0,0.00027246,2]
[366658989,1750387839153,-1000.0,0.00027252,2]
[366658990,1750387839162,-150.0,0.00027253,2]
[366658991,1750387839171,-150.0,0.00027255,2]
[366658992,1750387839181,-150.0,0.00027263,2]
[366658993,1750387839190,-150.0,0.00027272,2]
[366658994,1750387839200,-150.0,0.00027276,4]
[366658995,1750387839209,-150.0,0.00027286,2]
[366658996,1750387839218,-168.0,0.00027295,2]
[366658997,1750387839228,-272.3229,0.00027296,2]
[366658998,1750387839237,-153.11182394,0.00027296,2]
[366658999,1750387839247,-559.93348692,0.00027296,12]
[366659000,1750387839256,-277.71743426,0.00027299,2]
[366659001,1750387839266,-1000.0,0.000273,2]
[366659002,1750387839275,-150.0,0.00027302,4]
[366659003,1750387839285,-150.0,0.00027306,2]
[366659004,1750387839295,-150.0,0.00027307,2]
[366659005,1750387839307,-150.0,0.00027313,2]
[366659006,1750387839316,-154.03888196,0.00027318,2]
[366659007,1750387839326,-150.0,0.00027321,2]
[366659008,1750387839335,-150.0,0.00027324,2]
[366659009,1750387839346,-150.0,0.00027335,2]
[366659010,1750387839356,-153.11182388,0.0002734,2]
[366659011,1750387839366,-816.32835027,0.0002734,2]
[366659012,1750387839377,-201.0,0.00027341,8]
[366659013,1750387839387,-150.0,0.00027346,2]
[366659014,1750387839397,-150.0,0.00027348,2]
[366659015,1750387839406,-501.15678859,0.00027373,2]
[366659016,1750387839415,-5165.68833628,0.00027378,5]
[366659017,1750387839425,-168.0,0.0002738,2]
[366659018,1750387839435,-153.11182388,0.00027383,2]
[366659019,1750387839445,-7308.8509975,0.00027386,10]
[366659020,1750387839454,-20826.45391412,0.00027387,2]
[366659021,1750387839467,-599.1742772,0.00027387,2]
[366659023,1750387840533,-1664.68681253,0.00027387,2]
[366659024,1750387840635,-50533.42047565,0.00027387,2]
[366659025,1750387840644,-7595.49220142,0.00027387,2]
[366659026,1750387841028,151.23,0.00013699,2]
[366659029,1750387843700,-16945.75295838,0.00027387,2]
[366659030,1750387843711,-4633.58204395,0.0002739,2]
[366659031,1750387843724,-7637.04053595,0.0002739,2]
[366659032,1750387843735,-7274.10894813,0.0002739,2]
[366659033,1750387843910,-1587.98837803,0.0002739,2]
[366659039,1750387846471,-3408.52525374,0.0002739,2]
[366659040,1750387846483,-150.0,0.00027396,2]
[366659041,1750387846493,-72855.13318618,0.00027396,4]
[366659048,1750387871904,212.0,0.00022986,2]
[366659053,1750387901877,203.0,0.00022986,2]
[366659054,1750387998637,333.0,0.00022,2]
[366659055,1750388024528,666.0,0.000225,2]
[366659056,1750388058771,666.0,0.000228,2]
[366659057,1750388241207,5000.0,0.00025,120]
[366659058,1750388245934,1111.0,0.00023,2]
[366659059,1750388301363,1111.0,0.00023,3]
[366659060,1750388469393,3333.0,0.00023,3]
[366659061,1750388782210,2222.0,0.00023,2]
[366659062,1750388814348,500.0,0.00025,120]
[366659063,1750388821321,500.0,0.00025,120]
[366659064,1750388842106,158.29,0.00013699,2]
[366659069,1750389031513,-647.0,0.00023686,2]
[366659070,1750389031523,-203.0,0.000238,2]
[366659071,1750389031651,-117.96167396,0.000238,2]
[366659072,1750389031662,-246.17593611,0.000239,2]
[366659073,1750389031672,-921.04756993,0.00023999,2]
[366659088,1750389037801,-278.95243007,0.00023999,2]
[366659089,1750389037812,-300.0,0.00023999,2]
[366659090,1750389037824,-19.27826559,0.00024,2]
[366659110,1750389039781,-299.0987997,0.00024,2]
[366659111,1750389039795,-792.62293471,0.00024,2]
[366659112,1750389039806,-1980.02706529,0.00024,2]
[366659113,1750389039885,-241.97293471,0.00024,2]
[366659114,1750389039895,-259.71049289,0.00024,2]
[366659124,1750389042532,-320.96167396,0.00024,2]
[366659125,1750389042741,-85.32783315,0.00024,2]
[366659126,1750389042755,-168.0,0.00024223,2]
[366659127,1750389042766,-645.0,0.00024306,2]
[366659128,1750389042777,-189.0,0.00024409,2]
[366659129,1750389042787,-168.0,0.00024489,2]
[366659130,1750389042797,-168.0,0.00024562,2]
[366659131,1750389042809,-189.0,0.00024598,2]
[366659132,1750389042819,-150.29993219,0.00024658,4]
[366659133,1750389042830,-198.502598,0.00024658,4]
[366659134,1750389042840,-150.0,0.00024658,4]
[366659135,1750389042850,-150.0,0.00024658,4]
[366659136,1750389042859,-155.26387403,0.00024658,4]
[366659137,1750389042869,-153.28869925,0.00024658,4]
[366659138,1750389042879,-152.34504575,0.00024658,4]
[366659139,1750389042890,-150.412854,0.00024658,4]
[366659140,1750389042900,-246.1759361,0.000249,2]
[366659141,1750389042910,-2094.90011715,0.000249,12]
[366659142,1750389042921,-500.0,0.00024932,2]
[366659143,1750389042932,-500.0,0.00024932,2]
[366659144,1750389042942,-500.0,0.00024932,2]
[366659145,1750389042952,-200.0,0.00025181,7]
[366659146,1750389042962,-2475.09,0.00025204,2]
[366659147,1750389042972,-2094.90011706,0.0002521,12]
[366659148,1750389042982,-2682.13,0.0002521,2]
[366659149,1750389042993,-1000.0,0.00025212,2]
[366659150,1750389043004,-201.0,0.00025429,2]
[366659152,1750389043014,-203.0,0.00025429,2]
[366659154,1750389043023,-2094.90011706,0.00025521,13]